bitfinex/quotes_SOLUSD_20250522
["timestamp","ask_amount","ask_price","bid_price","bid_amount"]
[1747895087990,5.68375582,175.94,175.92,14.39850173]
[1747895088287,5.68375582,175.94,175.93,14.39850173]
[1747895088884,5.68375582,175.94,175.91,26.0]
[1747895088885,5.68375582,175.94,175.92,14.39850173]
[1747895090888,5.68375582,175.94,175.91,26.0]
[1747895091094,5.68375582,175.94,175.92,14.39850173]
[1747895092089,19.89314538,175.94,175.91,26.0]
[1747895092468,19.89314538,175.94,175.91,40.39850173]
[1747895092669,19.89314538,175.94,175.91,14.39850173]
[1747895093071,19.89314538,175.94,175.92,14.39850173]
[1747895094696,19.89314538,175.94,175.93,14.39850173]
[1747895095079,19.89314538,175.94,175.92,14.39850173]
[1747895096169,5.68375582,175.94,175.93,14.39850173]
[1747895096797,5.68310979,175.96,175.93,14.39850173]
[1747895096971,5.68310979,175.96,175.95,14.39850173]
[1747895097177,39.78310979,175.96,175.95,14.39850173]
[1747895098884,14.39850173,176.0,175.95,14.39850173]
[1747895098885,5.68246391,175.98,175.95,14.39850173]
[1747895099077,34.1,175.97,175.96,14.39850173]
[1747895099973,39.78278683,175.97,175.96,14.39850173]
[1747895101173,39.78278683,175.97,175.92,26.0]
[1747895101501,39.78278683,175.97,175.96,14.39850173]
[1747895101807,39.78278683,175.97,175.92,26.0]
[1747895102046,39.78278683,175.97,175.95,14.39850173]
[1747895102810,53.98975392,175.97,175.95,14.39850173]
[1747895103410,53.98975392,175.97,175.91,14.39850173]
[1747895103411,14.39850173,175.96,175.91,14.39850173]
[1747895103983,19.89201477,175.95,175.91,14.39850173]
[1747895105612,14.20858198,175.95,175.91,14.39850173]
[1747895107815,19.89201477,175.95,175.91,14.39850173]
[1747895109385,19.89201477,175.95,175.9,26.0]
[1747895109386,19.89201477,175.95,175.92,14.39850173]
[1747895109588,19.89201477,175.95,175.91,14.39850173]
[1747895110303,14.20858198,175.95,175.91,14.39850173]
[1747895112303,14.20858198,175.95,175.92,14.39850173]
[1747895115124,14.20858198,175.95,175.91,14.39850173]
[1747895115927,6.80256157,175.94,175.83,47.1482]
[1747895116113,14.39850173,175.9,175.81,39.1]
[1747895116316,0.14216157,175.88,175.83,14.39850173]
[1747895116623,19.90106328,175.87,175.82,14.39850173]
[1747895117018,19.90106328,175.87,175.83,14.39850173]
[1747895117223,19.90106328,175.87,175.84,14.39850173]
[1747895117805,19.90106328,175.87,175.83,14.39850173]
[1747895120338,19.90106328,175.87,175.81,26.0]
[1747895120510,19.90106328,175.87,175.83,14.39850173]
[1747895120710,19.90106328,175.87,175.81,26.0]
[1747895120937,19.90106328,175.87,175.84,14.39850173]
[1747895121232,19.90106328,175.87,175.81,26.0]
[1747895121435,19.90106328,175.87,175.83,14.39850173]
[1747895121639,19.90106328,175.87,175.84,14.39850173]
[1747895122209,19.90106328,175.87,175.82,14.39850173]
[1747895122409,19.90106328,175.87,175.81,26.0]
[1747895122632,19.90106328,175.87,175.82,14.39850173]
[1747895122832,19.90106328,175.87,175.81,26.0]
[1747895122833,19.90106328,175.87,175.83,14.39850173]
[1747895124425,34.12,175.86,175.84,14.39850173]
[1747895124919,5.68666477,175.85,175.84,14.39850173]
[1747895125840,39.80666477,175.85,175.84,14.39850173]
[1747895127948,39.80666477,175.85,175.84,40.39850173]
[1747895129443,39.80666477,175.85,175.84,26.0]
[1747895129625,39.80666477,175.85,175.84,40.39850173]
[1747895130049,39.80666477,175.85,175.84,26.0]
[1747895138953,39.80666477,175.85,175.84,40.39850173]
[1747895139565,39.80666477,175.85,175.84,26.0]
[1747895140157,39.80666477,175.85,175.83,14.39850173]
[1747895140341,54.02332669,175.85,175.81,14.39850173]
[1747895140639,54.02332669,175.85,175.82,14.39850173]
[1747895142359,54.02332669,175.85,175.83,14.39850173]
[1747895143565,54.02332669,175.85,175.84,14.39850173]
[1747895146663,54.02332669,175.85,175.83,14.39850173]
[1747895147740,54.02332669,175.85,175.83,9.18298533]
[1747895148565,54.02332669,175.85,175.82,9.18298533]
[1747895150161,54.02332669,175.85,175.78,26.0]
[1747895150464,54.02332669,175.85,175.81,35.18298533]
[1747895150769,39.80666477,175.85,175.84,9.18298533]
[1747895150939,5.68666477,175.85,175.84,9.18298533]
[1747895151139,39.80666477,175.85,175.84,9.18298533]
[1747895153665,39.80666477,175.85,175.84,40.3445199]
[1747895155067,34.12,175.87,175.84,40.3445199]
[1747895155253,34.12,175.88,175.86,14.3445199]
[1747895155567,34.12,175.88,175.87,14.3445199]
[1747895156566,34.12,175.9,175.87,14.3445199]
[1747895156744,34.12,175.9,175.89,14.3445199]
[1747895157857,39.80504832,175.9,175.89,14.3445199]
[1747895160269,39.80504832,175.9,175.86,26.0]
[1747895160570,39.80504832,175.9,175.89,14.3445199]
[1747895161275,34.12,175.92,175.89,40.3445199]
[1747895161443,34.12,175.92,175.91,14.3445199]
[1747895162355,39.804402,175.92,175.91,14.3445199]
[1747895162560,54.015407,175.92,175.9,14.3445199]
[1747895162869,54.015407,175.92,175.86,39.1]
[1747895162870,39.804402,175.92,175.91,14.3445199]
[1747895163069,34.12,175.92,175.91,14.3445199]
[1747895163375,39.804402,175.92,175.91,14.3445199]
[1747895163563,5.684402,175.92,175.91,14.3445199]
[1747895163764,34.1,175.93,175.91,14.3445199]
[1747895163947,34.1,175.93,175.92,14.3445199]
[1747895164872,39.78407889,175.93,175.92,14.3445199]
[1747895165241,5.68407889,175.93,175.91,26.0]
[1747895165460,5.68407889,175.93,175.92,14.3445199]
[1747895166161,5.68407889,175.93,175.9,26.0]
[1747895166360,5.68407889,175.93,175.92,14.3445199]
[1747895166763,39.78383011,175.94,175.92,14.3445199]
[1747895167075,34.1,175.95,175.93,40.3445199]
[1747895167276,34.1,175.96,175.95,26.0]
[1747895167775,34.1,175.96,175.92,40.3445199]
[1747895167947,34.1,175.96,175.92,26.0]
[1747895168150,14.3445199,175.94,175.84,8.37188393]
[1747895168351,34.1,175.93,175.89,40.3445199]
[1747895168873,5.684402,175.92,175.89,40.3445199]
[1747895169071,5.684402,175.92,175.89,14.3445199]
[1747895170074,5.684402,175.92,175.88,14.3445199]
[1747895170380,34.2399269,175.92,175.86,14.3445199]
[1747895170557,19.895407,175.92,175.87,26.0]
[1747895170758,34.2399269,175.92,175.87,26.0]
[1747895171055,19.895407,175.92,175.87,40.3445199]
[1747895171253,5.684402,175.92,175.88,14.3445199]
[1747895171978,19.895407,175.92,175.87,14.3445199]
[1747895172674,5.684402,175.92,175.9,14.3445199]
[1747895172868,5.684402,175.92,175.91,14.3445199]
[1747895173177,39.784402,175.92,175.91,14.3445199]
[1747895173989,39.784402,175.92,175.9,14.3445199]
[1747895179178,39.784402,175.92,175.87,26.0]
[1747895179385,39.784402,175.92,175.9,14.3445199]
[1747895180674,39.784402,175.92,175.87,26.0]
[1747895180864,39.784402,175.92,175.9,14.3445199]
[1747895182492,39.784402,175.92,175.87,26.0]
[1747895182788,39.784402,175.92,175.9,14.3445199]
[1747895182992,39.784402,175.92,175.87,26.0]
[1747895183169,39.784402,175.92,175.9,14.3445199]
[1747895184879,5.68381929,175.94,175.91,14.3445199]
[1747895185078,34.1,175.93,175.92,26.0]
[1747895185284,34.1,175.94,175.92,40.3445199]
[1747895185677,34.1,175.94,175.92,26.0]
[1747895185988,39.78375582,175.94,175.93,14.3445199]
[1747895188287,39.78375582,175.94,175.91,26.0]
[1747895188288,39.78375582,175.94,175.92,14.3445199]
[1747895188864,39.78375582,175.94,175.91,26.0]
[1747895189192,39.78407889,175.93,175.92,14.3445199]
[1747895189967,39.78407889,175.93,175.88,39.1]
[1747895190188,39.78407889,175.93,175.92,14.3445199]
[1747895191693,39.78407889,175.93,175.89,26.0]
[1747895191891,39.78407889,175.93,175.92,14.3445199]
[1747895193197,39.78407889,175.93,175.91,26.0]
[1747895193691,39.78407889,175.93,175.91,40.3445199]
[1747895194981,39.78407889,175.93,175.92,14.3445199]
[1747895196705,20.40986269,175.99,175.92,40.3445199]
[1747895196906,5.58125584,176.01,175.97,14.3445199]
[1747895196907,39.78246391,175.98,175.97,14.3445199]
[1747895197493,39.78246391,175.98,175.96,14.3445199]
[1747895197694,34.1,175.97,175.96,14.3445199]
[1747895198390,39.78278683,175.97,175.96,14.3445199]
[1747895199299,5.68278683,175.97,175.96,14.3445199]
[1747895199679,39.78278683,175.97,175.96,14.3445199]
[1747895200692,39.78278683,175.97,175.92,26.0]
[1747895200891,39.78278683,175.97,175.96,14.3445199]
[1747895203682,39.78278683,175.97,175.92,26.0]
[1747895203888,39.78278683,175.97,175.94,14.3445199]
[1747895204084,68.33427382,175.97,175.91,14.3445199]
[1747895204291,20.6746199,175.96,175.85,41.3424]
[1747895204484,20.6746199,175.96,175.9,14.3445199]
[1747895205008,19.89201477,175.95,175.91,14.3445199]
[1747895205194,34.1,175.94,175.91,14.3445199]
[1747895207515,5.68407889,175.93,175.91,14.3445199]
[1747895207704,0.14216157,175.92,175.85,1.5424]
[1747895207888,34.1,175.91,175.85,14.3445199]
[1747895208083,34.1,175.91,175.8,1.6637]
[1747895208503,34.1,175.91,175.82,14.3445199]
[1747895208708,34.1,175.91,175.81,26.0]
[1747895208888,156.79427612,175.93,175.81,26.0]
[1747895209096,34.1,175.92,175.83,26.0]
[1747895209611,19.89653799,175.91,175.83,26.0]
[1747895210199,19.89653799,175.91,175.8,20.31334886]
[1747895210401,19.89653799,175.91,175.83,26.0]
[1747895215520,5.68472514,175.91,175.83,26.0]
[1747895216218,46.34028845,175.92,175.83,26.0]
[1747895216403,46.34028845,175.92,175.84,26.0]
[1747895221335,0.14216157,175.91,175.82,26.0]
[1747895221911,0.14216157,175.91,175.83,26.0]
[1747895222933,18.79181043,175.91,175.8,1.6637]
[1747895223109,18.79181043,175.91,175.8,27.6637]
[1747895223303,0.14216157,175.91,175.8,1.6637]
[1747895223506,0.14216157,175.91,175.8,27.6637]
[1747895225018,0.14216157,175.91,175.8,33.35196044]
[1747895226141,5.82656357,175.92,175.8,33.35196044]
[1747895226642,5.684402,175.92,175.84,26.0]
[1747895226820,39.68,175.94,175.88,26.0]
[1747895227032,45.36385178,175.94,175.88,26.0]
[1747895233442,39.68,175.94,175.88,5.6854561]
[1747895233647,46.42629823,175.96,175.88,31.6854561]
[1747895235923,0.14216157,175.95,175.88,26.0]
[1747895237026,0.14216157,175.95,175.83,5.6873116]
[1747895237751,0.14216157,175.95,175.86,26.0]
[1747895237933,60.63407272,175.96,175.86,26.0]
[1747895237934,0.14216157,175.93,175.86,26.0]
[1747895238953,0.14216157,175.93,175.83,5.68704716]
[1747895239142,39.72216157,175.93,175.84,26.0]
[1747895239964,5.684402,175.92,175.84,26.0]
[1747895240168,34.24216157,175.91,175.84,26.0]
[1747895241352,34.24216157,175.91,175.78,7.27012934]
[1747895241561,34.24216157,175.91,175.81,26.0]
[1747895241858,0.14216157,175.89,175.78,7.27012934]
[1747895242160,0.14216157,175.89,175.81,26.0]
[1747895242340,0.14216157,175.89,175.82,26.0]
[1747895242341,0.14216157,175.87,175.82,26.0]
[1747895242729,0.14216157,175.87,175.78,1.5812]
[1747895243047,39.72216157,175.87,175.77,5.68896517]
[1747895243246,39.72216157,175.87,175.78,26.0]
[1747895243843,0.14216157,175.85,175.78,26.0]
[1747895244147,0.14216157,175.85,175.76,5.68948784]
[1747895244148,34.24216157,175.85,175.76,5.68948784]
[1747895244679,34.24216157,175.85,175.79,26.0]
[1747895245229,5.68698817,175.84,175.79,26.0]
[1747895246344,39.92886406,175.85,175.79,26.0]
[1747895247647,34.1,175.85,175.79,31.68851956]
[1747895247862,39.80542752,175.89,175.83,26.0]
[1747895250945,34.12,175.89,175.83,26.0]
[1747895251346,39.80543628,175.89,175.83,26.0]
[1747895251556,70.40525057,175.9,175.85,26.0]
[1747895251738,30.82525057,175.9,175.85,26.0]
[1747895252183,30.82525057,175.9,175.84,26.0]
[1747895252761,36.51037665,175.9,175.84,26.0]
[1747895254456,30.82525057,175.9,175.85,26.0]
[1747895256146,36.51035297,175.9,175.83,18.64964886]
[1747895256345,36.51035297,175.9,175.86,26.0]
[1747895262273,0.14216157,175.89,175.81,1.6593]
[1747895262778,0.14216157,175.87,175.82,26.0]
[1747895262965,0.14216157,175.87,175.81,1.6593]
[1747895263166,34.12,175.88,175.81,1.6593]
[1747895264277,5.68601808,175.87,175.81,1.6593]
[1747895265397,0.14216157,175.86,175.76,1.55]
[1747895265574,26.0,175.82,175.71,7.9509]
[1747895265891,0.14216157,175.8,175.68,83.0]
[1747895266093,39.72216157,175.8,175.71,26.0]
[1747895266280,0.14216157,175.78,175.68,83.0]
[1747895266481,0.14216157,175.78,175.66,47.1443]
[1747895266679,0.14216157,175.78,175.69,26.0]
[1747895266999,0.14216157,175.78,175.67,18.64964886]
[1747895267168,0.14216157,175.78,175.66,47.1443]
[1747895267373,0.14216157,175.78,175.67,18.64964886]
[1747895267595,0.14216157,175.78,175.7,26.0]
[1747895268795,5.689253,175.77,175.7,26.0]
[1747895268992,5.689253,175.77,175.71,26.0]
[1747895269298,5.689253,175.77,175.71,44.64964886]
[1747895269498,0.14216157,175.76,175.71,26.0]
[1747895269707,0.14216157,175.76,175.69,26.0]
[1747895269997,0.14216157,175.74,175.63,18.64964886]
[1747895270192,0.14216157,175.74,175.66,26.0]
[1747895270571,0.14216157,175.74,175.63,18.64964886]
[1747895270572,0.14216157,175.74,175.63,24.57335945]
[1747895270775,5.69054799,175.73,175.66,26.0]
[1747895271388,5.69054799,175.73,175.63,24.57335945]
[1747895271594,5.69054799,175.73,175.66,26.0]
[1747895272401,5.69022419,175.74,175.68,26.0]
[1747895273089,5.69022419,175.74,175.67,18.64964886]
[1747895273774,19.91578467,175.74,175.66,26.0]
[1747895273970,0.14216157,175.73,175.66,26.0]
[1747895274370,5.69087184,175.72,175.63,18.64964886]
[1747895274868,5.69087184,175.72,175.66,26.0]
[1747895275272,19.91805144,175.72,175.66,26.0]
[1747895277098,5.69087184,175.72,175.66,26.0]
[1747895278381,19.91805144,175.72,175.66,26.0]
[1747895278986,19.91805144,175.72,175.62,7.6625]
[1747895278987,0.14216157,175.71,175.62,7.6625]
[1747895279181,0.14216157,175.71,175.65,26.0]
[1747895279704,14.2271796,175.72,175.65,26.0]
[1747895281190,19.91805144,175.72,175.66,26.0]
[1747895283308,0.14216157,175.71,175.65,26.0]
[1747895285001,5.69087184,175.72,175.66,18.64964886]
[1747895285188,34.28216157,175.77,175.66,24.3421407]
[1747895285388,54.19454707,175.77,175.69,26.0]
[1747895288303,20.05454707,175.77,175.69,26.0]
[1747895289484,5.689253,175.77,175.71,26.0]
[1747895290408,19.9123855,175.77,175.71,26.0]
[1747895292027,19.9123855,175.77,175.7,1.5627]
[1747895292194,0.14216157,175.76,175.66,1.6595]
[1747895292504,0.14216157,175.76,175.66,27.6595]
[1747895292892,0.14216157,175.76,175.67,26.0]
[1747895293296,0.14216157,175.76,175.66,1.6595]
[1747895293514,19.91465148,175.75,175.66,1.6595]
[1747895293704,19.91465148,175.75,175.67,26.0]
[1747895294231,48.36415361,175.75,175.67,26.0]
[1747895294515,0.14216157,175.73,175.67,26.0]
[1747895295118,18.79181043,175.71,175.62,83.0]
[1747895295291,18.79181043,175.71,175.58,1.5422]
[1747895295493,0.14216157,175.69,175.58,27.5422]
[1747895295797,0.14216157,175.67,175.58,27.5422]
[1747895295985,0.14216157,175.67,175.58,1.5422]
[1747895296181,0.14216157,175.67,175.58,27.5422]
[1747895296400,34.14,175.68,175.58,1.5422]
[1747895296609,34.14,175.68,175.6,26.0]
[1747895297391,5.6924916,175.67,175.6,26.0]
[1747895297608,5.6924916,175.67,175.62,26.0]
[1747895302423,5.6924916,175.67,175.63,26.0]
[1747895303498,28.43581848,175.84,175.68,33.6272]
[1747895303700,5.68537153,175.89,175.74,26.0]
[1747895303896,18.86658008,176.01,175.79,1.5321]
[1747895304107,14.54827981,176.01,175.84,26.0]
[1747895304309,8.86658008,176.01,175.93,2.96492316]
[1747895304520,8.0907,176.0,175.88,26.0]
[1747895304696,34.14,175.99,175.74,34.11]
[1747895304896,34.14,175.99,175.76,52.75964886]
[1747895304897,33.80930559,175.99,175.76,52.75964886]
[1747895305099,10.0,175.96,175.8,18.64964886]
[1747895305303,10.0,175.94,175.83,0.14216157]
[1747895305628,36.0,175.82,175.65,2.89738451]
[1747895305926,26.0,175.74,175.57,1.5931]
[1747895306092,26.0,175.7,175.59,18.79181043]
[1747895306300,26.0,175.7,175.6,0.56896015]
[1747895306497,26.0,175.7,175.58,18.65547688]
[1747895306697,5.68860572,175.79,175.58,10.0]
[1747895306920,18.79181043,175.78,175.62,26.0]
[1747895307109,0.14216157,175.78,175.61,10.0]
[1747895307308,0.14216157,175.77,175.61,10.0]
[1747895307509,18.64964886,175.84,175.7,26.0]
[1747895307713,0.14216157,175.83,175.71,26.0]
[1747895308014,95.01596945,175.87,175.72,26.0]
[1747895308015,14.99156929,175.86,175.72,26.0]
[1747895308203,0.14216157,175.85,175.76,26.0]
[1747895308403,0.14216157,175.85,175.7,6.4012]
[1747895308404,0.14216157,175.85,175.78,26.0]
[1747895308611,9.30496357,175.86,175.78,26.0]
[1747895308818,0.14216157,175.85,175.78,26.0]
[1747895309010,0.14216157,175.85,175.76,26.0]
[1747895309626,0.14216157,175.83,175.72,26.0]
[1747895310006,34.16,175.84,175.73,44.64964886]
[1747895310208,9.30496357,175.86,175.74,0.14216157]
[1747895310427,9.30496357,175.86,175.77,26.0]
[1747895311003,9.30496357,175.86,175.82,26.0]
[1747895311404,9.30496357,175.86,175.85,44.64964886]
[1747895311609,12.18891891,175.98,175.89,26.0]
[1747895312009,0.14216157,175.97,175.89,26.0]
[1747895312414,5.82509871,175.97,175.83,44.64964886]
[1747895312620,5.82509871,175.97,175.83,26.0]
[1747895312621,0.14216157,175.95,175.83,26.0]
[1747895312940,0.14216157,175.93,175.83,26.0]
[1747895313324,0.14216157,175.93,175.77,18.79181043]
[1747895313636,0.14216157,175.93,175.81,18.64964886]
[1747895314042,0.14216157,175.93,175.84,26.0]
[1747895314443,5.82627932,175.93,175.77,0.14216157]
[1747895314734,5.82627932,175.93,175.83,26.0]
[1747895319412,5.82627932,175.93,175.8,18.64964886]
[1747895319731,51.88,175.94,175.89,26.0]
[1747895319923,0.14216157,175.97,175.89,26.0]
[1747895320349,5.82525399,175.97,175.89,26.0]
[1747895321125,20.03222108,175.97,175.89,26.0]
[1747895321956,5.82525399,175.97,175.89,26.0]
[1747895322864,5.82525399,175.97,175.86,26.0]
[1747895323353,20.03222108,175.97,175.86,26.0]
[1747895323843,0.14216157,175.95,175.83,26.0]
[1747895324034,0.14216157,175.95,175.84,26.0]
[1747895324434,0.14216157,175.96,175.84,26.0]
[1747895324725,5.68343279,175.95,175.84,26.0]
[1747895325552,0.14216157,175.94,175.85,26.0]
[1747895325729,5.68343279,175.95,175.85,26.0]
[1747895325924,5.68343279,175.95,175.84,24.33647607]
[1747895326124,5.68343279,175.95,175.85,26.0]
[1747895327045,5.68343279,175.95,175.84,18.64964886]
[1747895327272,5.68343279,175.95,175.87,26.0]
[1747895327454,5.68343279,175.95,175.87,109.0]
[1747895328144,9.74858177,175.98,175.91,26.0]
[1747895328145,5.68307682,175.97,175.91,26.0]
[1747895328331,15.28905254,175.98,175.91,26.0]
[1747895328732,9.6064202,175.98,175.91,26.0]
[1747895329052,9.6064202,175.98,175.94,26.0]
[1747895329350,15.28908637,175.98,175.94,26.0]
[1747895329562,9.6064202,175.98,175.93,26.0]
[1747895330147,15.28894946,175.98,175.94,26.0]
[1747895330855,15.28894946,175.98,175.92,26.0]
[1747895331022,0.14216157,175.97,175.85,6.0019]
[1747895331229,0.14216157,175.97,175.86,18.64964886]
[1747895331438,0.14216157,175.97,175.82,18.64964886]
[1747895331753,18.79181043,175.97,175.78,253.3603]
[1747895331923,18.79181043,175.97,175.8,18.64964886]
[1747895332125,18.79181043,175.93,175.78,219.2403]
[1747895332341,52.91181043,175.93,175.78,219.2403]
[1747895332522,52.91181043,175.93,175.81,26.0]
[1747895332949,0.14216157,175.91,175.79,18.64964886]
[1747895333470,0.14216157,175.91,175.82,26.0]
[1747895333669,0.14216157,175.91,175.78,6.3803]
[1747895333963,18.79181043,175.91,175.8,26.0]
[1747895334435,0.14216157,175.91,175.75,18.64964886]
[1747895334634,0.14216157,175.91,175.76,34.1]
[1747895334832,19.89766912,175.9,175.8,26.0]
[1747895335148,5.68504832,175.9,175.81,26.0]
[1747895335336,0.14216157,175.89,175.81,26.0]
[1747895335546,0.14216157,175.89,175.79,26.0]
[1747895335738,18.79181043,175.89,175.73,11.9065703]
[1747895335928,18.79181043,175.89,175.74,18.64964886]
[1747895336125,18.79181043,175.89,175.77,26.0]
[1747895336327,18.79181043,175.89,175.74,18.64964886]
[1747895336748,18.79181043,175.87,175.76,26.0]
[1747895336947,18.79181043,175.87,175.73,11.9065703]
[1747895337146,18.79181043,175.87,175.76,26.0]
[1747895339063,0.14216157,175.85,175.76,26.0]
[1747895340873,48.33390194,175.86,175.76,26.0]
[1747895340874,19.90219491,175.86,175.77,18.64964886]
[1747895341069,19.90219491,175.86,175.77,101.64964886]
[1747895341444,0.14216157,175.85,175.76,26.0]
[1747895341636,18.79181043,175.85,175.76,26.0]
[1747895341839,44.79181043,175.85,175.73,11.9065703]
[1747895342065,0.14216157,175.81,175.73,11.9065703]
[1747895342359,0.14216157,175.81,175.69,18.64964886]
[1747895342563,0.14216157,175.81,175.72,26.0]
[1747895343352,5.68795859,175.81,175.76,26.0]
[1747895345257,5.6873116,175.83,175.76,26.0]
[1747895345571,19.90559061,175.83,175.76,26.0]
[1747895350646,5.6873116,175.83,175.76,109.0]
[1747895351046,5.6873116,175.83,175.76,114.68945506]
[1747895351268,5.6873116,175.83,175.76,109.0]
[1747895351850,5.6873116,175.83,175.77,18.64964886]
[1747895352162,5.6873116,175.83,175.8,26.0]
[1747895352677,19.9025292,175.86,175.8,26.0]
[1747895353175,0.14216157,175.85,175.78,29.24510073]
[1747895354060,0.14216157,175.85,175.78,26.0]
[1747895354857,48.33423623,175.86,175.78,26.0]
[1747895354858,0.14216157,175.83,175.78,26.0]
[1747895355889,0.14216157,175.83,175.77,83.0]
[1747895356052,34.26216157,175.83,175.72,83.0]
[1747895356254,34.26216157,175.83,175.7,101.64964886]
[1747895356577,34.26216157,175.83,175.73,26.0]
[1747895357085,19.90672278,175.82,175.73,26.0]
[1747895357745,19.90672278,175.82,175.67,271.30530809]
[1747895357746,0.14216157,175.81,175.71,26.0]
[1747895357953,0.14216157,175.81,175.68,58.46174332]
[1747895358251,0.14216157,175.81,175.72,26.0]
[1747895358879,0.14216157,175.79,175.72,26.0]
[1747895359975,5.68892934,175.78,175.72,26.0]
[1747895360374,19.91125269,175.78,175.72,26.0]
[1747895361481,5.68892934,175.78,175.72,26.0]
[1747895362077,20.05114904,175.8,175.72,26.0]
[1747895366793,19.90898747,175.8,175.72,26.0]
[1747895366961,19.90898747,175.8,175.73,26.0]
[1747895367291,5.68828213,175.8,175.73,26.0]
[1747895367487,5.68828213,175.8,175.77,26.0]
[1747895368690,0.14216157,175.83,175.77,26.0]
[1747895369991,19.90445859,175.84,175.77,26.0]
[1747895371885,5.6863414,175.86,175.79,26.0]
[1747895372061,5.6863414,175.86,175.83,26.0]
[1747895372788,5.6863414,175.86,175.81,26.0]
[1747895375089,5.6863414,175.86,175.82,26.0]
[1747895375588,16.64929488,175.87,175.82,26.0]
[1747895376869,10.9632373,175.87,175.82,26.0]
[1747895377381,10.9632373,175.87,175.83,3.25579622]
[1747895377579,16.64931295,175.87,175.83,3.25579622]
[1747895378785,16.64931295,175.87,175.82,26.0]
[1747895382776,16.64931295,175.87,175.83,26.0]
[1747895383698,16.64931295,175.87,175.82,26.0]
[1747895383897,30.86435815,175.87,175.79,18.64964886]
[1747895384110,0.14216157,175.86,175.78,6.1191]
[1747895384276,0.14216157,175.86,175.76,6.90708122]
[1747895384776,0.14216157,175.86,175.79,26.0]
[1747895384977,0.14216157,175.86,175.76,6.90708122]
[1747895385377,18.79181043,175.86,175.77,3.25459521]
[1747895385689,0.14216157,175.84,175.77,3.25459521]
[1747895386400,0.14216157,175.84,175.76,32.90708122]
[1747895386800,1.5149,175.83,175.76,32.90708122]
[1747895386991,34.26216157,175.82,175.76,6.90708122]
[1747895387801,19.90785506,175.81,175.76,6.90708122]
[1747895388104,0.14216157,175.8,175.76,6.90708122]
[1747895388787,19.90785506,175.81,175.76,6.90708122]
[1747895391787,0.14216157,175.8,175.76,6.90708122]
[1747895392291,5.68860572,175.79,175.76,6.90708122]
[1747895396405,5.46924285,175.79,175.76,6.90708122]
[1747895397607,0.14216157,175.78,175.76,6.90708122]
[1747895398603,5.46924285,175.79,175.76,6.90708122]
[1747895399715,19.90785506,175.81,175.76,6.90708122]
[1747895401217,0.14216157,175.78,175.76,6.90708122]
[1747895402511,0.14216157,175.76,175.65,6.5084]
[1747895403014,0.14216157,175.76,175.68,26.0]
[1747895403205,0.14216157,175.74,175.68,26.0]
[1747895405520,19.91691798,175.73,175.68,26.0]
[1747895407420,19.91691798,175.73,175.64,18.64964886]
[1747895407719,19.91691798,175.73,175.64,26.0]
[1747895408407,19.91691798,175.73,175.63,21.50540617]
[1747895408819,19.91125269,175.78,175.7,26.0]
[1747895409016,5.68892934,175.78,175.74,26.0]
[1747895409398,19.90828401,175.81,175.74,26.0]
[1747895410506,0.14216157,175.8,175.74,26.0]
[1747895410701,19.90828401,175.81,175.73,26.0]
[1747895411194,0.14216157,175.8,175.73,26.0]
[1747895411389,0.14216157,175.78,175.71,26.0]
[1747895412296,0.14216157,175.78,175.65,6.1242]
[1747895412297,0.14216157,175.76,175.65,6.1242]
[1747895412811,0.14216157,175.76,175.62,1.5957]
[1747895412812,0.14216157,175.74,175.62,1.5957]
[1747895413318,0.14216157,175.74,175.66,26.0]
[1747895413694,19.91691798,175.73,175.66,26.0]
[1747895415622,14.22636999,175.73,175.66,26.0]
[1747895416120,5.69022419,175.74,175.66,26.0]
[1747895416495,19.91578467,175.74,175.66,26.0]
[1747895417426,5.69022419,175.74,175.66,31.6927735]
[1747895417919,5.68957669,175.76,175.7,26.0]
[1747895418107,19.91351842,175.76,175.7,26.0]
[1747895419304,5.68957669,175.76,175.7,26.0]
[1747895421335,19.91351842,175.76,175.7,26.0]
[1747895423907,5.68957669,175.76,175.7,26.0]
[1747895425432,5.68957669,175.76,175.72,26.0]
[1747895426025,19.91037363,175.79,175.7,26.0]
[1747895426315,5.68860572,175.79,175.74,26.0]